[Event "IIFL Wealth 4th Mumbai Open"]
[Site "Mumbai"]
[Date "2019.01.05"]
[Round "7"]
[White "Raghav, Srivathsav V"]
[Black "Aditya Varun Gampa"]
[Result "1-0"]
[ECO "B20"]
[WhiteElo "2056"]
[BlackElo "1809"]
[Annotator "NA"]
[PlyCount "141"]
[EventDate "2018.12.30"]
[EventType "swiss"]
[EventCountry "IND"]
[SourceTitle "playchess.com"]
[Source "ChessBase"]
[SourceQuality "1"]
[TimeControl "40/5400+30:1800+30"]

1. e4 {[%emt 0:00:00]} c5 {[%emt 0:00:01]} 2. b3 {[%emt 0:00:06]} g6 {[%emt 0:00:59]} 3. Bb2 {[%emt 0:00:08]} Nf6 {[%emt 0:00:06]} 4. g3 {[%emt 0:00:07]} Bg7 {[%emt 0:00:46]} 5. Bg2 {[%emt 0:00:07]} d6 {[%emt 0:02:03]} 6. Ne2 {[%emt 0:00:06]} O-O {[%emt 0:00:19]} 7. O-O {[%emt 0:00:10]} Nc6 {[%emt 0:00:19]} 8. Nbc3 {[%emt 0:03:36]} Bd7 {[%emt 0:03:43]} 9. h3 {[%emt 0:01:55]} Rb8 {[%emt 0:00:56]} 10. a4 {[%emt 0:00:13]} e5 {[%emt 0:06:09]} 11. f4 {[%emt 0:02:07]} exf4 {[%emt 0:01:39]} 12. Nxf4 {[%emt 0:00:47]} Nd4 {[%emt 0:03:35]} 13. Rb1 {[%emt 0:00:50]} Be6 {[%emt 0:00:56]} 14. Nce2 {[%emt 0:01:06]} d5 {[%emt 0:02:06]} 15. Nxd4 {[%emt 0:26:08]} cxd4 {[%emt 0:00:28]} 16. Bxd4 {[%emt 0:04:16]} Nxe4 {[%emt 0:02:37]} 17. Bxg7 {[%emt 0:00:14]} Kxg7 {[%emt 0:00:26]} 18. Qe1 {[%emt 0:00:34]} Qg5 {[%emt 0:05:18]} 19. Kh2 {[%emt 0:02:33]} Rfe8 {[%emt 0:04:25]} 20. Qe3 {[%emt 0:00:17]} Kg8 {[%emt 0:03:47]} 21. d3 {[%emt 0:05:11]} Nd6 {[%emt 0:06:54]} 22. Qxa7 {[%emt 0:02:26]} Nf5 {[%emt 0:02:38]} 23. Qf2 {[%emt 0:00:29]} d4 {[%emt 0:01:55]} 24. Nxe6 {[%emt 0:00:32]} fxe6 {[%emt 0:00:12]} 25. Qf4 {[%emt 0:10:11]} Qxf4 {[%emt 0:00:26]} 26. Rxf4 {[%emt 0:00:30]} e5 {[%emt 0:00:13]} 27. Re4 {[%emt 0:01:30]} Rbc8 {[%emt 0:02:27]} 28. Re2 {[%emt 0:01:28]} Re7 {[%emt 0:00:19]} 29. Rbe1 {[%emt 0:01:48]} Ne3 {[%emt 0:01:30]} 30. c4 {[%emt 0:00:18]} Rf8 {[%emt 0:01:47]} 31. a5 {[%emt 0:00:20]} Kg7 {[%emt 0:00:59]} 32. Kg1 {[%emt 0:00:21]} h5 {[%emt 0:02:39]} 33. h4 {[%emt 0:00:45]} Ref7 {[%emt 0:00:30]} 34. b4 {[%emt 0:01:07]} Rf3 {[%emt 0:01:29]} 35. Bxf3 {[%emt 0:00:57]} Rxf3 {[%emt 0:00:02]} 36. Rxe3 {[%emt 0:01:24]} dxe3 {[%emt 0:00:15]} 37. Re2 {[%emt 0:00:06]} Rxg3+ {[%emt 0:00:13]} 38. Kh2 {[%emt 0:00:05]} Rf3 {[%emt 0:00:55]} 39. Kg2 {[%emt 0:00:45]} Rf4 {[%emt 0:00:18]} 40. Rxe3 {[%emt 0:00:00]} Rxh4 {[%emt 0:00:00]} 41. Rxe5 {[%emt 0:01:33]} Rg4+ {[%emt 0:01:30]} 42. Kh3 {[%emt 0:01:12]} Kf6 {[%emt 0:00:35]} 43. Rb5 {[%emt 0:01:50]} g5 44. Rxb7 {[%emt 0:00:27]} Rd4 {[%emt 0:01:02]} 45. a6 {[%emt 0:12:43]} Rxd3+ {[%emt 0:00:54]} 46. Kg2 {[%emt 0:00:06]} Ra3 {[%emt 0:01:15]} 47. a7 {[%emt 0:00:15]} Ra2+ {[%emt 0:00:37]} 48. Kf1 {[%emt 0:01:13]} h4 {[%emt 0:01:18]} 49. b5 {[%emt 0:00:05]} Kf5 {[%emt 0:00:59]} 50. b6 {[%emt 0:00:24]} h3 {[%emt 0:01:32]} 51. Rh7 {[%emt 0:00:28]} g4 {[%emt 0:00:50]} 52. b7 {[%emt 0:09:01]} Rxa7 {[%emt 0:01:07]} 53. b8=Q Rxh7 {[%emt 0:00:09]} 54. Qc8+ {[%emt 0:03:08]} Kf4 {[%emt 0:00:47]} 55. Qf8+ {[%emt 0:01:04]} Ke4 {[%emt 0:00:37]} 56. Qg8 {[%emt 0:00:27]} Re7 {[%emt 0:04:17]} 57. Qxg4+ {[%emt 0:00:19]} Ke5 {[%emt 0:00:37]} 58. Qxh3 {[%emt 0:00:06]} Kd6 {[%emt 0:00:18]} 59. c5+ {[%emt 0:00:29]} Kc6 {[%emt 0:00:19]} 60. Qf3+ {[%emt 0:00:22]} Kc7 {[%emt 0:02:25]} 61. Qf4+ {[%emt 0:00:10]} Kb7 {[%emt 0:01:21]} 62. Qb4+ {[%emt 0:00:31]} Kc8 {[%emt 0:01:09]} 63. c6 {[%emt 0:00:12]} Ra7 {[%emt 0:00:27]} 64. Qf8+ {[%emt 0:01:07]} Kc7 {[%emt 0:00:08]} 65. Qe7+ {[%emt 0:00:22]} Kb6 {[%emt 0:00:11]} 66. Qe3+ {[%emt 0:00:07]} Ka6 {[%emt 0:00:40]} 67. Qd3+ {[%emt 0:00:15]} Kb6 {[%emt 0:00:09]} 68. Qd4+ {[%emt 0:00:16]} Ka6 {[%emt 0:00:08]} 69. Qd8 {[%emt 0:00:52]} Rf7+ {[%emt 0:01:42]} 70. Ke2 {[%emt 0:00:09]} Rc7 {[%emt 0:00:23]} 71. Qxc7 {[%emt 0:00:35]} 1-0

[Event "IIFL Wealth 4th Mumbai Open"]
[Site "Mumbai"]
[Date "2019.01.05"]
[Round "7"]
[White "Vahdatian, Davood"]
[Black "Samrat, Ghorai"]
[Result "0-1"]
[ECO "B43"]
[WhiteElo "2036"]
[BlackElo "1984"]
[Annotator "NA"]
[PlyCount "118"]
[EventDate "2018.12.30"]
[EventType "swiss"]
[EventCountry "IND"]
[SourceTitle "playchess.com"]
[Source "ChessBase"]
[SourceQuality "1"]
[TimeControl "40/5400+30:1800+30"]

1. e4 {[%emt 0:00:00]} c5 {[%emt 0:00:00]} 2. Nf3 {[%emt 0:00:00]} e6 {[%emt 0:00:00]} 3. d4 {[%emt 0:00:00]} cxd4 {[%emt 0:00:00]} 4. Nxd4 {[%emt 0:00:05]} a6 {[%emt 0:00:00]} 5. Nc3 {[%emt 0:00:19]} Qc7 {[%emt 0:00:03]} 6. Bd3 {[%emt 0:00:10]} Nf6 {[%emt 0:00:07]} 7. f4 {[%emt 0:00:05]} d6 {[%emt 0:00:10]} 8. O-O {[%emt 0:01:09]} b5 {[%emt 0:01:56]} 9. a3 {[%emt 0:01:55]} Bb7 {[%emt 0:00:13]} 10. Qf3 {[%emt 0:03:45]} Nbd7 {[%emt 0:03:13]} 11. Be3 {[%emt 0:03:27]} h5 {[%emt 0:06:04]} 12. Kh1 {[%emt 0:02:16]} h4 {[%emt 0:07:30]} 13. Kg1 {[%emt 0:02:32]} Be7 {[%emt 0:09:15]} 14. Rae1 {[%emt 0:02:44]} Nb6 {[%emt 0:13:20]} 15. Qe2 {[%emt 0:06:13]} h3 {[%emt 0:18:30]} 16. g3 {[%emt 0:00:36]} Rc8 {[%emt 0:08:55]} 17. Bf2 {[%emt 0:04:40]} Nc4 {[%emt 0:05:00]} 18. Ncxb5 {[%emt 0:19:39]} axb5 {[%emt 0:00:42]} 19. Nxb5 {[%emt 0:00:02]} Qa5 {[%emt 0:08:51]} 20. Bxc4 {[%emt 0:01:19]} Nxe4 {[%emt 0:08:52]} 21. Bd3 {[%emt 0:09:56]} Nxf2 {[%emt 0:04:51]} 22. Rxf2 {[%emt 0:02:34]} Qb6 {[%emt 0:00:08]} 23. c3 {[%emt 0:04:40]} Bd5 {[%emt 0:02:15]} 24. Nd4 {[%emt 0:06:48]} Bf6 {[%emt 0:00:16]} 25. Nf5 {[%emt 0:01:21]} g6 {[%emt 0:01:14]} 26. Ne3 {[%emt 0:00:41]} Ba8 {[%emt 0:00:21]} 27. Ng4 {[%emt 0:03:58]} Be7 {[%emt 0:00:31]} 28. f5 {[%emt 0:00:31]} Qb7 {[%emt 0:00:31]} 29. Rf4 {[%emt 0:05:43]} gxf5 {[%emt 0:00:33]} 30. Bxf5 {[%emt 0:01:00]} Qh1+ {[%emt 0:00:21]} 31. Kf2 {[%emt 0:00:02]} Qg2+ {[%emt 0:00:12]} 32. Ke3 {[%emt 0:00:02]} Qxe2+ {[%emt 0:01:01]} 33. Kxe2 {[%emt 0:00:41]} exf5 {[%emt 0:00:05]} 34. Rxf5 {[%emt 0:00:43]} Rc5 {[%emt 0:00:50]} 35. Rf4 {[%emt 0:00:46]} Bd5 {[%emt 0:00:58]} 36. Kd3 {[%emt 0:01:34]} Be6 {[%emt 0:00:13]} 37. b4 {[%emt 0:02:08]} Rc7 {[%emt 0:00:31]} 38. a4 {[%emt 0:00:39]} Kd7 {[%emt 0:00:19]} 39. Nf6+ {[%emt 0:01:31]} Bxf6 {[%emt 0:00:28]} 40. Rxf6 {[%emt 0:00:00]} Rhc8 {[%emt 0:00:00]} 41. Rc1 {[%emt 0:00:36]} Rc4 {[%emt 0:00:35]} 42. Rff1 {[%emt 0:05:29]} d5 {[%emt 0:00:16]} 43. Rf4 {[%emt 0:01:47]} Ra8 {[%emt 0:04:31]} 44. Ra1 {[%emt 0:04:40]} Kc6 {[%emt 0:02:37]} 45. Rxc4+ {[%emt 0:00:30]} dxc4+ {[%emt 0:00:08]} 46. Ke4 {[%emt 0:08:24]} Rd8 {[%emt 0:00:54]} 47. Ra2 {[%emt 0:00:49]} Kb6 {[%emt 0:01:07]} 48. Kf4 {[%emt 0:02:09]} Rd3 {[%emt 0:02:22]} 49. Ra3 {[%emt 0:02:25]} Rd2 {[%emt 0:00:47]} 50. g4 {[%emt 0:00:02]} Rb2 {[%emt 0:04:05]} 51. Ra1 {[%emt 0:00:46]} Rxh2 {[%emt 0:01:32]} 52. a5+ {[%emt 0:00:22]} Ka7 {[%emt 0:03:01]} 53. b5 {[%emt 0:02:16]} Rb2 {[%emt 0:00:11]} 54. Rh1 {[%emt 0:01:43]} h2 {[%emt 0:01:16]} 55. Kg3 {[%emt 0:00:16]} Bd7 {[%emt 0:00:45]} 56. g5 {[%emt 0:01:21]} Bxb5 {[%emt 0:01:14]} 57. Rxh2 {[%emt 0:01:08]} Rxh2 {[%emt 0:00:03]} 58. Kxh2 {[%emt 0:00:08]} Ba4 {[%emt 0:00:15]} 59. Kg3 {[%emt 0:00:03]} Bc2 {[%emt 0:00:02]} 0-1

[Event "IIFL Wealth 4th Mumbai Open"]
[Site "Mumbai"]
[Date "2019.01.05"]
[Round "7"]
[White "Thatte Ashish P"]
[Black "Dhanashree, Pandit"]
[Result "0-1"]
[ECO "A00"]
[WhiteElo "1957"]
[BlackElo "1676"]
[Annotator "NA"]
[PlyCount "96"]
[EventDate "2018.12.30"]
[EventType "swiss"]
[EventCountry "IND"]
[SourceTitle "playchess.com"]
[Source "ChessBase"]
[SourceQuality "1"]
[TimeControl "40/5400+30:1800+30"]

1. a3 {[%emt 0:00:22]} d5 {[%emt 0:00:00]} 2. Nf3 {[%emt 0:00:09]} Nf6 {[%emt 0:00:04]} 3. g3 {[%emt 0:00:06]} e6 {[%emt 0:00:15]} 4. Bg2 {[%emt 0:01:42]} c5 {[%emt 0:00:21]} 5. c4 {[%emt 0:00:05]} Nc6 {[%emt 0:00:04]} 6. O-O {[%emt 0:00:20]} Be7 {[%emt 0:01:28]} 7. cxd5 {[%emt 0:05:10]} exd5 {[%emt 0:00:05]} 8. d4 {[%emt 0:00:04]} O-O {[%emt 0:00:06]} 9. Nc3 {[%emt 0:00:18]} h6 {[%emt 0:02:24]} 10. Bf4 {[%emt 0:03:48]} Bg4 {[%emt 0:01:43]} 11. Ne5 {[%emt 0:18:16]} cxd4 {[%emt 0:09:24]} 12. Nxg4 {[%emt 0:04:02]} dxc3 {[%emt 0:00:51]} 13. Nxf6+ {[%emt 0:00:13]} Bxf6 {[%emt 0:00:04]} 14. bxc3 {[%emt 0:00:07]} Bxc3 {[%emt 0:00:50]} 15. Rb1 {[%emt 0:00:30]} b6 {[%emt 0:29:19]} 16. Qxd5 {[%emt 0:21:33]} Qxd5 {[%emt 0:00:23]} 17. Bxd5 {[%emt 0:00:10]} Rac8 {[%emt 0:00:05]} 18. Rfc1 {[%emt 0:05:43]} Nd4 {[%emt 0:01:27]} 19. Kf1 {[%emt 0:00:18]} Ba5 {[%emt 0:05:12]} 20. Bb7 {[%emt 0:03:09]} Rxc1+ {[%emt 0:06:15]} 21. Rxc1 {[%emt 0:00:02]} Ne6 {[%emt 0:00:05]} 22. Bd6 {[%emt 0:16:25]} Rd8 {[%emt 0:00:44]} 23. Rc8 {[%emt 0:00:44]} Rxc8 {[%emt 0:11:47]} 24. Bxc8 {[%emt 0:00:04]} Bc3 {[%emt 0:00:05]} 25. Bb8 {[%emt 0:03:12]} a5 {[%emt 0:00:22]} 26. Bxe6 {[%emt 0:03:24]} fxe6 {[%emt 0:00:04]} 27. a4 {[%emt 0:00:04]} Kf7 {[%emt 0:05:12]} 28. Bc7 {[%emt 0:06:06]} Bd4 {[%emt 0:02:18]} 29. e3 {[%emt 0:00:45]} Bc5 {[%emt 0:00:05]} 30. Ke2 {[%emt 0:00:09]} Ke7 {[%emt 0:01:26]} 31. Kd3 {[%emt 0:00:16]} Kd7 {[%emt 0:00:19]} 32. Be5 {[%emt 0:02:09]} g6 {[%emt 0:00:05]} 33. Kc4 {[%emt 0:00:05]} Kc6 {[%emt 0:00:06]} 34. g4 {[%emt 0:01:01]} Bb4 {[%emt 0:08:10]} 35. Bd4 {[%emt 0:02:31]} Be1 {[%emt 0:03:38]} 36. f3 {[%emt 0:01:02]} Bf2 {[%emt 0:02:47]} 37. f4 {[%emt 0:01:41]} h5 {[%emt 0:04:15]} 38. gxh5 {[%emt 0:00:50]} gxh5 {[%emt 0:00:02]} 39. e4 {[%emt 0:01:21]} Bxd4 {[%emt 0:04:27]} 40. Kxd4 {[%emt 0:00:00]} b5 {[%emt 0:00:00]} 41. axb5+ {[%emt 0:04:38]} Kxb5 {[%emt 0:00:05]} 42. f5 {[%emt 0:00:05]} exf5 {[%emt 0:00:03]} 43. exf5 {[%emt 0:00:02]} Kc6 {[%emt 0:00:51]} 44. Ke5 {[%emt 0:15:15]} Kd7 {[%emt 0:00:02]} 45. Kf6 {[%emt 0:00:06]} a4 {[%emt 0:00:04]} 46. Kg6 {[%emt 0:00:04]} a3 {[%emt 0:00:24]} 47. f6 {[%emt 0:00:01]} a2 {[%emt 0:00:09]} 48. f7 {[%emt 0:00:05]} Ke7 {[%emt 0:00:05]} 0-1

[Event "IIFL Wealth 4th Mumbai Open"]
[Site "Mumbai"]
[Date "2019.01.05"]
[Round "7"]
[White "Devesh Anand Naik"]
[Black "Dhanvij Ansh"]
[Result "1-0"]
[ECO "B24"]
[WhiteElo "1830"]
[BlackElo "1523"]
[Annotator "NA"]
[PlyCount "67"]
[EventDate "2018.12.30"]
[EventType "swiss"]
[EventCountry "IND"]
[SourceTitle "playchess.com"]
[Source "ChessBase"]
[SourceQuality "1"]
[TimeControl "40/5400+30:1800+30"]

1. e4 {[%emt 0:00:00]} c5 {[%emt 0:00:00]} 2. Nc3 {[%emt 0:00:00]} Nc6 {[%emt 0:00:22]} 3. Bb5 {[%emt 0:00:00]} g6 {[%emt 0:00:27]} 4. Bxc6 dxc6 {[%emt 0:00:10]} 5. f4 {[%emt 0:00:03]} Bg7 {[%emt 0:00:37]} 6. Nf3 {[%emt 0:00:09]} e6 {[%emt 0:01:48]} 7. O-O {[%emt 0:00:11]} Ne7 {[%emt 0:00:20]} 8. d3 {[%emt 0:00:25]} b6 {[%emt 0:01:19]} 9. e5 {[%emt 0:00:32]} Ba6 {[%emt 0:01:05]} 10. Ne4 {[%emt 0:00:40]} O-O {[%emt 0:01:02]} 11. Qe1 {[%emt 0:00:28]} Nf5 {[%emt 0:02:36]} 12. b3 {[%emt 0:04:42]} Nd4 {[%emt 0:11:17]} 13. Nxd4 {[%emt 0:00:29]} cxd4 {[%emt 0:00:19]} 14. f5 {[%emt 0:08:50]} exf5 {[%emt 0:17:44]} 15. Bg5 {[%emt 0:00:12]} f6 {[%emt 0:01:37]} 16. exf6 {[%emt 0:00:19]} Bxf6 {[%emt 0:00:32]} 17. Nxf6+ {[%emt 0:00:11]} Rxf6 {[%emt 0:00:29]} 18. Qh4 {[%emt 0:00:32]} Kg7 {[%emt 0:02:53]} 19. Rae1 {[%emt 0:00:41]} h5 {[%emt 0:02:58]} 20. Bxf6+ {[%emt 0:00:13]} Qxf6 {[%emt 0:00:08]} 21. Re7+ {[%emt 0:00:10]} Qf7 {[%emt 0:00:08]} 22. Rxf7+ {[%emt 0:00:06]} Kxf7 {[%emt 0:00:13]} 23. Re1 {[%emt 0:00:14]} Re8 {[%emt 0:00:24]} 24. Rxe8 {[%emt 0:00:10]} Kxe8 {[%emt 0:00:08]} 25. Qxd4 {[%emt 0:00:07]} Bc8 {[%emt 0:00:09]} 26. Qh8+ {[%emt 0:00:08]} Kd7 {[%emt 0:00:08]} 27. Qg7+ {[%emt 0:00:05]} Kd6 {[%emt 0:00:10]} 28. Qxg6+ {[%emt 0:00:06]} Kc7 {[%emt 0:00:09]} 29. Qxh5 {[%emt 0:00:06]} Be6 {[%emt 0:00:08]} 30. Qg6 {[%emt 0:00:07]} Bd7 {[%emt 0:00:06]} 31. h4 {[%emt 0:00:10]} f4 {[%emt 0:00:13]} 32. h5 {[%emt 0:00:06]} f3 {[%emt 0:00:08]} 33. gxf3 {[%emt 0:00:06]} a5 {[%emt 0:00:13]} 34. h6 {[%emt 0:00:13]} 1-0

[Event "IIFL Wealth 4th Mumbai Open"]
[Site "Mumbai"]
[Date "2019.01.05"]
[Round "7"]
[White "Unni, C. S."]
[Black "Nehete Arnav"]
[Result "1/2-1/2"]
[ECO "E07"]
[WhiteElo "1827"]
[BlackElo "1544"]
[Annotator "NA"]
[PlyCount "191"]
[EventDate "2018.12.30"]
[EventType "swiss"]
[EventCountry "IND"]
[SourceTitle "playchess.com"]
[Source "ChessBase"]
[SourceQuality "1"]
[TimeControl "40/5400+30:1800+30"]

1. d4 {[%emt 0:00:00]} Nf6 {[%emt 0:00:00]} 2. c4 {[%emt 0:00:00]} e6 {[%emt 0:00:00]} 3. Nf3 {[%emt 0:00:00]} d5 {[%emt 0:00:20]} 4. g3 {[%emt 0:00:00]} Be7 {[%emt 0:00:08]} 5. Bg2 {[%emt 0:00:04]} O-O {[%emt 0:00:20]} 6. O-O {[%emt 0:00:07]} Nbd7 {[%emt 0:00:10]} 7. b3 {[%emt 0:01:03]} c6 {[%emt 0:00:46]} 8. Bb2 {[%emt 0:00:11]} b6 {[%emt 0:00:09]} 9. Ne5 {[%emt 0:00:36]} Bb7 {[%emt 0:00:55]} 10. Nc3 {[%emt 0:01:19]} c5 {[%emt 0:07:21]} 11. e3 {[%emt 0:03:07]} Rc8 {[%emt 0:07:24]} 12. Re1 {[%emt 0:04:26]} a6 {[%emt 0:12:06]} 13. Rc1 {[%emt 0:14:09]} cxd4 {[%emt 0:06:06]} 14. exd4 {[%emt 0:00:04]} Nb8 {[%emt 0:03:40]} 15. a3 {[%emt 0:01:48]} Nc6 {[%emt 0:01:50]} 16. cxd5 {[%emt 0:04:17]} exd5 {[%emt 0:01:26]} 17. b4 {[%emt 0:00:23]} b5 {[%emt 0:04:00]} 18. Qd3 {[%emt 0:02:18]} Bd6 {[%emt 0:10:28]} 19. Rcd1 {[%emt 0:01:26]} Ne7 {[%emt 0:03:33]} 20. h3 {[%emt 0:01:38]} Re8 {[%emt 0:01:24]} 21. g4 {[%emt 0:02:45]} Ng6 {[%emt 0:02:30]} 22. Qg3 {[%emt 0:04:46]} Rc7 {[%emt 0:09:38]} 23. f4 {[%emt 0:00:31]} Rce7 {[%emt 0:02:26]} 24. Qf2 {[%emt 0:03:18]} Qb6 {[%emt 0:03:10]} 25. Kf1 {[%emt 0:01:29]} a5 {[%emt 0:03:28]} 26. Na2 {[%emt 0:05:10]} axb4 {[%emt 0:04:36]} 27. Nxb4 {[%emt 0:00:19]} Qa5 {[%emt 0:00:34]} 28. g5 {[%emt 0:05:03]} Nh5 {[%emt 0:01:05]} 29. Nxd5 {[%emt 0:00:51]} Bxd5 {[%emt 0:06:09]} 30. Bxd5 {[%emt 0:00:04]} Nhxf4 {[%emt 0:02:18]} 31. Bc6 {[%emt 0:06:59]} Rc8 {[%emt 0:01:55]} 32. d5 {[%emt 0:00:14]} Nxh3 {[%emt 0:03:54]} 33. Qf5 {[%emt 0:00:35]} Rf8 {[%emt 0:01:28]} 34. Nd7 {[%emt 0:03:44]} Rfe8 {[%emt 0:01:00]} 35. Rxe7 {[%emt 0:00:32]} Nxe7 36. Qxh3 {[%emt 0:00:37]} b4 {[%emt 0:00:22]} 37. Nf6+ {[%emt 0:02:25]} gxf6 {[%emt 0:01:01]} 38. gxf6 {[%emt 0:00:08]} Qa6+ {[%emt 0:00:08]} 39. Kg1 {[%emt 0:00:56]} Qe2 {[%emt 0:00:21]} 40. Qg2+ {[%emt 0:00:00]} Qxg2+ {[%emt 0:00:00]} 41. Kxg2 {[%emt 0:01:17]} Nxc6 {[%emt 0:00:27]} 42. dxc6 {[%emt 0:00:10]} bxa3 {[%emt 0:01:04]} 43. Bxa3 {[%emt 0:02:02]} Be5 {[%emt 0:05:03]} 44. Be7 {[%emt 0:01:03]} Rc8 {[%emt 0:02:10]} 45. Kf3 {[%emt 0:00:16]} h6 {[%emt 0:00:26]} 46. Ke4 {[%emt 0:01:05]} Bxf6 {[%emt 0:00:53]} 47. Bxf6 {[%emt 0:00:06]} Rxc6 {[%emt 0:00:34]} 48. Kf5 {[%emt 0:00:04]} Rc5+ {[%emt 0:00:18]} 49. Be5 {[%emt 0:00:05]} Kf8 {[%emt 0:00:07]} 50. Rd6 {[%emt 0:03:29]} h5 {[%emt 0:01:29]} 51. Rh6 {[%emt 0:00:04]} Ke7 {[%emt 0:00:10]} 52. Rxh5 {[%emt 0:00:49]} Ra5 {[%emt 0:00:46]} 53. Rh6 {[%emt 0:01:12]} Rb5 {[%emt 0:00:11]} 54. Rc6 {[%emt 0:01:00]} Rb7 {[%emt 0:02:07]} 55. Ra6 {[%emt 0:04:04]} Rb5 {[%emt 0:00:54]} 56. Ke4 {[%emt 0:00:19]} Rb4+ {[%emt 0:00:41]} 57. Kd5 {[%emt 0:00:22]} Rb5+ {[%emt 0:00:01]} 58. Kd4 {[%emt 0:00:21]} Rb1 {[%emt 0:00:33]} 59. Bf6+ {[%emt 0:00:40]} Kd7 {[%emt 0:00:07]} 60. Kc5 {[%emt 0:05:10]} Rc1+ {[%emt 0:00:12]} 61. Kd5 {[%emt 0:00:47]} Rd1+ {[%emt 0:00:26]} 62. Bd4 {[%emt 0:00:23]} Rc1 {[%emt 0:00:55]} 63. Rf6 {[%emt 0:02:28]} Ke7 {[%emt 0:00:31]} 64. Rf3 {[%emt 0:01:25]} Rd1 {[%emt 0:00:12]} 65. Ra3 {[%emt 0:00:34]} Kd7 {[%emt 0:00:52]} 66. Ra7+ {[%emt 0:00:04]} Ke8 {[%emt 0:00:10]} 67. Kc5 {[%emt 0:00:51]} Rh1 {[%emt 0:01:35]} 68. Bf6 {[%emt 0:02:36]} Rc1+ {[%emt 0:00:41]} 69. Kd5 {[%emt 0:00:44]} Rd1+ {[%emt 0:00:22]} 70. Bd4 {[%emt 0:00:04]} Rh1 {[%emt 0:00:12]} 71. Bc5 {[%emt 0:00:29]} Rd1+ {[%emt 0:03:41]} 72. Kc6 {[%emt 0:00:06]} Rd8 {[%emt 0:00:38]} 73. Bd6 {[%emt 0:00:29]} Rc8+ {[%emt 0:00:39]} 74. Kd5 {[%emt 0:00:03]} Rd8 {[%emt 0:01:14]} 75. Ke5 {[%emt 0:01:33]} Rd7 {[%emt 0:00:48]} 76. Ra3 {[%emt 0:00:18]} Rb7 {[%emt 0:00:21]} 77. Rf3 {[%emt 0:03:01]} Rb5+ {[%emt 0:00:14]} 78. Kd4 {[%emt 0:00:04]} Kd7 {[%emt 0:00:30]} 79. Bc5 {[%emt 0:00:04]} Ke6 {[%emt 0:00:46]} 80. Re3+ {[%emt 0:00:55]} Kf6 {[%emt 0:00:49]} 81. Be7+ {[%emt 0:00:34]} Kf5 {[%emt 0:00:13]} 82. Bc5 {[%emt 0:01:44]} Rb8 {[%emt 0:02:21]} 83. Bd6 {[%emt 0:00:34]} Rb5 {[%emt 0:01:08]} 84. Re7 {[%emt 0:01:56]} Kf6 {[%emt 0:00:37]} 85. Re8 {[%emt 0:00:05]} Rb1 {[%emt 0:00:27]} 86. Be5+ {[%emt 0:00:11]} Kf5 {[%emt 0:00:41]} 87. Bd6 {[%emt 0:11:49]} Rd1+ {[%emt 0:00:04]} 88. Kc5 {[%emt 0:00:05]} Rc1+ {[%emt 0:00:05]} 89. Kd5 {[%emt 0:00:06]} Rd1+ {[%emt 0:00:04]} 90. Kc6 {[%emt 0:00:04]} Rc1+ {[%emt 0:00:28]} 91. Kd7 {[%emt 0:00:08]} Kg6 {[%emt 0:00:30]} 92. Rg8+ {[%emt 0:01:40]} Kf6 {[%emt 0:00:25]} 93. Be7+ {[%emt 0:00:10]} Ke5 {[%emt 0:00:46]} 94. Bd6+ {[%emt 0:01:09]} Kf6 95. Rg2 {[%emt 0:00:35]} Rd1 {[%emt 0:00:32]} 96. Rg4 1/2-1/2

[Event "IIFL Wealth 4th Mumbai Open"]
[Site "Mumbai"]
[Date "2019.01.05"]
[Round "7"]
[White "Barde Om"]
[Black "Ratnapriya K"]
[Result "1-0"]
[ECO "C55"]
[WhiteElo "1801"]
[BlackElo "1508"]
[Annotator "NA"]
[PlyCount "117"]
[EventDate "2018.12.30"]
[EventType "swiss"]
[EventCountry "IND"]
[SourceTitle "playchess.com"]
[Source "ChessBase"]
[SourceQuality "1"]
[TimeControl "40/5400+30:1800+30"]

1. e4 e5 2. Nf3 Nc6 3. Bc4 Nf6 4. d3 Be7 5. c3 O-O 6. O-O d5 7. exd5 Nxd5 8. h3 Be6 9. Re1 Qd6 10. Qe2 Bf6 11. Na3 a6 12. Bb3 Nb6 13. Bxe6 Qxe6 14. Be3 Nd5 15. Nc4 Rfe8 16. Ncd2 Nxe3 17. Qxe3 g6 18. Nb3 b6 19. Qe2 Bg7 20. Rad1 a5 21. Qf1 Qc8 22. Re2 a4 23. Nbd2 b5 24. a3 Qd7 25. Ne4 f5 26. Ng3 Qf7 27. Qe1 Re7 28. Qd2 Rd8 29. Qc2 Red7 30. Ree1 Qb3 31. Qb1 e4 32. Nd2 Qf7 33. d4 Bh6 34. Ngf1 Na5 35. f3 exf3 36. Nxf3 Qb3 37. N1d2 Bxd2 38. Rxd2 Nc4 39. Rde2 c5 40. Qc1 Nd6 41. dxc5 Ne4 42. Nd4 Qc4 43. c6 Rc7 44. Qf4 Rdc8 45. Qe5 Qc5 46. Rxe4 Qxe5 47. Rxe5 Kf7 48. Nxb5 Rxc6 49. Re7+ Kg8 50. Na7 R6c7 51. Nxc8 Rxc8 52. Re8+ Rxe8 53. Rxe8+ Kf7 54. Re1 Kf6 55. c4 Kg5 56. c5 Kh5 57. c6 g5 58. c7 Kh4 59. c8=Q 1-0

[Event "IIFL Wealth 4th Mumbai Open"]
[Site "Mumbai"]
[Date "2019.01.05"]
[Round "7"]
[White "Abhinessh S"]
[Black "Sa, Kannan"]
[Result "0-1"]
[ECO "C00"]
[WhiteElo "1790"]
[BlackElo "2069"]
[Annotator "NA"]
[PlyCount "70"]
[EventDate "2018.12.30"]
[EventType "swiss"]
[EventCountry "IND"]
[SourceTitle "playchess.com"]
[Source "ChessBase"]
[SourceQuality "1"]
[TimeControl "40/5400+30:1800+30"]

1. e4 {[%emt 0:00:00]} e6 {[%emt 0:00:35]} 2. d4 {[%emt 0:01:14]} b6 {[%emt 0:00:02]} 3. Nf3 {[%emt 0:00:33]} Bb7 {[%emt 0:00:10]} 4. Bd3 {[%emt 0:00:39]} Nf6 {[%emt 0:00:37]} 5. Bg5 {[%emt 0:03:15]} h6 {[%emt 0:00:19]} 6. Bxf6 {[%emt 0:00:27]} Qxf6 {[%emt 0:00:03]} 7. Nbd2 {[%emt 0:01:16]} d6 {[%emt 0:07:42]} 8. c3 {[%emt 0:07:35]} Nd7 {[%emt 0:01:30]} 9. Qe2 {[%emt 0:02:23]} Qd8 {[%emt 0:04:57]} 10. a4 {[%emt 0:08:16]} a6 {[%emt 0:06:41]} 11. O-O {[%emt 0:05:06]} Be7 {[%emt 0:05:54]} 12. Ne1 {[%emt 0:03:23]} O-O {[%emt 0:00:33]} 13. f4 {[%emt 0:00:38]} c5 {[%emt 0:04:58]} 14. Nc4 {[%emt 0:11:17]} cxd4 {[%emt 0:02:53]} 15. cxd4 {[%emt 0:00:13]} d5 {[%emt 0:00:17]} 16. exd5 {[%emt 0:02:50]} Bxd5 {[%emt 0:01:17]} 17. Ne5 {[%emt 0:04:29]} a5 {[%emt 0:01:16]} 18. f5 {[%emt 0:04:47]} Nxe5 {[%emt 0:04:00]} 19. dxe5 {[%emt 0:03:03]} Bc5+ {[%emt 0:00:31]} 20. Kh1 {[%emt 0:00:45]} exf5 {[%emt 0:01:07]} 21. Bxf5 {[%emt 0:05:29]} Qg5 {[%emt 0:03:21]} 22. Be4 {[%emt 0:03:03]} Rad8 {[%emt 0:02:53]} 23. Nf3 {[%emt 0:02:06]} Qe3 {[%emt 0:00:59]} 24. Qxe3 {[%emt 0:06:18]} Bxe3 {[%emt 0:00:07]} 25. Rfe1 {[%emt 0:02:18]} Bxe4 {[%emt 0:02:29]} 26. Rxe3 {[%emt 0:00:07]} Bxf3 {[%emt 0:00:16]} 27. gxf3 {[%emt 0:05:18]} Rd2 {[%emt 0:01:00]} 28. Rb3 {[%emt 0:08:14]} Rc8 {[%emt 0:00:47]} 29. Rc3 {[%emt 0:05:14]} Re8 {[%emt 0:00:31]} 30. f4 {[%emt 0:00:40]} Rxb2 {[%emt 0:00:12]} 31. Rg3 {[%emt 0:02:45]} Rf2 {[%emt 0:02:20]} 32. Rag1 {[%emt 0:01:25]} g6 {[%emt 0:00:10]} 33. Rg4 {[%emt 0:00:50]} h5 {[%emt 0:00:45]} 34. R1g2 {[%emt 0:00:16]} Rf3 {[%emt 0:01:03]} 35. R2g3 {[%emt 0:00:11]} hxg4 {[%emt 0:00:11]} 0-1